[Event "Krakow Championship-B 2022"]
[Site "Krakow"]
[Date "2022.06.29"]
[Round "6.6"]
[White "Malik, Maciej"]
[Black "Garsky, Vladyslav"]
[Result "1/2-1/2"]
[ECO "D04"]
[WhiteElo "1984"]
[BlackElo "1860"]
[Annotator "NA RC"]
[PlyCount "117"]
[EventDate "2022.06.25"]
[EventType "swiss"]
[EventCountry "POL"]
[SourceTitle "playchess.com"]
[Source "ChessBase"]
[SourceQuality "1"]
[TimeControl "40/5400+30:1800+30"]

1. d4 {[%emt 0:00:50]} Nf6 {[%emt 0:00:24]} 2. Nf3 {[%emt 0:00:06]} d5 {[%emt 0:00:23]} 3. e3 {[%emt 0:00:18]} g6 {[%emt 0:00:29]} 4. c4 {[%emt 0:00:51]} c6 {[%emt 0:01:08]} 5. Nc3 {[%emt 0:00:24]} Bg7 {[%emt 0:01:07]} 6. Qb3 {[%emt 0:00:28]} O-O {[%emt 0:00:42]} 7. Bd2 {[%emt 0:01:51]} b6 {[%emt 0:11:46]} 8. cxd5 {[%emt 0:01:36]} cxd5 {[%emt 0:00:17]} 9. Rc1 {[%emt 0:00:35]} Bb7 {[%emt 0:04:38]} 10. Ne5 {[%emt 0:04:53]} Nfd7 {[%emt 0:08:26]} 11. Nd3 {[%emt 0:02:08]} Nf6 {[%emt 0:05:17]} 12. f3 {[%emt 0:06:31]} Nc6 {[%emt 0:05:35]} 13. Nc5 {[%emt 0:10:13]} Bc8 {[%emt 0:06:38]} 14. Na6 {[%emt 0:05:00]} e5 {[%emt 0:01:22]} 15. Na4 {[%emt 0:02:35]} exd4 {[%emt 0:05:29]} 16. Rxc6 {[%emt 0:04:02]} dxe3 {[%emt 0:00:01]} 17. Bb4 {[%emt 0:00:37]} Re8 {[%emt 0:02:47]} 18. Nc7 {[%emt 0:05:07]} d4 {[%emt 0:12:44]} 19. Bd3 {[%emt 0:18:33]} Bb7 {[%emt 0:02:42]} 20. Rc2 {[%emt 0:06:23]} Nd5 {[%emt 0:01:24]} 21. Nxe8 Qxe8 {[%emt 0:00:02]} 22. Ba3 {[%emt 0:15:27]} Nf4 {[%emt 0:04:31]} 23. Bb5 {[%emt 0:03:43]} Qd8 {[%emt 0:01:37]} 24. O-O {[%emt 0:01:39]} d3 {[%emt 0:01:32]} 25. Bxd3 {[%emt 0:00:37]} Nxd3 {[%emt 0:07:27]} 26. Rd1 {[%emt 0:01:07]} Qd4 {[%emt 0:01:15]} 27. Re2 {[%emt 0:01:16]} Ba6 {[%emt 0:00:03]} 28. Nc3 {[%emt 0:00:56]} Qe5 {[%emt 0:08:13]} 29. Qa4 {[%emt 0:01:28]} Nc5 {[%emt 0:00:59]} 30. Bxc5 {[%emt 0:02:59]} Bxe2 {[%emt 0:00:07]} 31. Qc6 {[%emt 0:02:19]} Re8 {[%emt 0:01:15]} 32. Bd6 {[%emt 0:01:06]} Bxd1 {[%emt 0:00:44]} 33. Bxe5 {[%emt 0:00:05]} Rxe5 {[%emt 0:00:28]} 34. Kf1 {[%emt 0:00:42]} Bf8 {[%emt 0:03:12]} 35. Nxd1 {[%emt 0:00:46]} e2+ {[%emt 0:00:06]} 36. Ke1 {[%emt 0:00:01]} Bc5 {[%emt 0:00:33]} 37. Qa4 {[%emt 0:01:03]} a5 {[%emt 0:00:40]} 38. Qh4 {[%emt 0:00:27]} exd1=Q+ {[%emt 0:01:25]} 39. Kxd1 {[%emt 0:00:02]} Rd5+ {[%emt 0:00:16]} 40. Kc2 {[%emt 0:00:38]} Kg7 {[%emt 0:00:57]} 41. Qe4 {[%emt 0:30:24]} Rd4 {[%emt 0:30:21]} 42. Qe5+ {[%emt 0:00:10]} Kg8 {[%emt 0:00:01]} 43. b3 {[%emt 0:01:28]} Rd8 {[%emt 0:00:00]} 44. Qc7 {[%emt 0:00:00]} Rd4 {[%emt 0:00:00]} 45. a3 {[%emt 0:00:00]} Rd6 {[%emt 0:00:00]} 46. a4 {[%emt 0:00:00]} Bb4 {[%emt 0:00:00]} 47. g4 {[%emt 0:00:00]} Rd2+ {[%emt 0:00:00]} 48. Kc1 {[%emt 0:00:00]} Rd3 {[%emt 0:00:00]} 49. Qb8+ {[%emt 0:00:00]} Kg7 {[%emt 0:00:00]} 50. Qe5+ {[%emt 0:00:00]} Kg8 {[%emt 0:00:00]} 51. f4 {[%emt 0:00:00]} Rxb3 {[%emt 0:00:00]} 52. h4 {[%emt 0:00:00]} Bf8 {[%emt 0:00:00]} 53. h5 {[%emt 0:00:00]} Rb4 {[%emt 0:00:00]} 54. hxg6 {[%emt 0:00:00]} hxg6 {[%emt 0:00:00]} 55. g5 {[%emt 0:00:00]} Rxa4 {[%emt 0:00:00]} 56. Kd2 {[%emt 0:00:00]} Rb4 {[%emt 0:00:00]} 57. f5 {[%emt 0:00:00]} gxf5 {[%emt 0:00:00]} 58. Qxf5 {[%emt 0:00:00]} Bg7 {[%emt 0:00:00]} 59. Qc8+ {[%emt 0:00:00]} 1/2-1/2

[Event "Krakow Championship-B 2022"]
[Site "Krakow"]
[Date "2022.06.29"]
[Round "6.7"]
[White "Matuszczyk, Mateusz"]
[Black "Maciejewski, Kamil"]
[Result "0-1"]
[ECO "C95"]
[WhiteElo "1830"]
[BlackElo "1939"]
[Annotator "NA RC"]
[PlyCount "118"]
[EventDate "2022.06.25"]
[EventType "swiss"]
[EventCountry "POL"]
[SourceTitle "playchess.com"]
[Source "ChessBase"]
[SourceQuality "1"]
[TimeControl "40/5400+30:1800+30"]

1. e4 {[%emt 0:00:30]} e5 {[%emt 0:00:20]} 2. Nf3 {[%emt 0:00:04]} Nc6 {[%emt 0:00:26]} 3. Bb5 {[%emt 0:00:04]} a6 {[%emt 0:00:14]} 4. Ba4 {[%emt 0:00:03]} Nf6 {[%emt 0:00:19]} 5. O-O {[%emt 0:00:06]} Be7 {[%emt 0:00:25]} 6. Re1 {[%emt 0:00:11]} b5 {[%emt 0:00:10]} 7. Bb3 {[%emt 0:00:04]} d6 {[%emt 0:00:11]} 8. c3 {[%emt 0:01:36]} O-O {[%emt 0:00:09]} 9. h3 {[%emt 0:01:24]} Nb8 {[%emt 0:00:09]} 10. d4 {[%emt 0:03:37]} Nbd7 {[%emt 0:00:07]} 11. a4 {[%emt 0:07:28]} Bb7 {[%emt 0:01:45]} 12. Nbd2 {[%emt 0:03:36]} c5 {[%emt 0:12:14]} 13. Bc2 {[%emt 0:07:23]} Qc7 {[%emt 0:10:55]} 14. Nf1 {[%emt 0:22:34]} Rfc8 {[%emt 0:17:25]} 15. Bb1 {[%emt 0:06:15]} Nb6 {[%emt 0:12:45]} 16. Ne3 {[%emt 0:11:25]} cxd4 {[%emt 0:08:38]} 17. cxd4 {[%emt 0:00:37]} Nxa4 {[%emt 0:02:22]} 18. Nd5 {[%emt 0:02:50]} Nxd5 19. exd5 {[%emt 0:00:01]} exd4 {[%emt 0:14:56]} 20. Bg5 {[%emt 0:14:27]} Re8 {[%emt 0:02:13]} 21. Qxd4 {[%emt 0:08:57]} Bxg5 {[%emt 0:01:19]} 22. Bxh7+ {[%emt 0:00:05]} Kxh7 {[%emt 0:01:47]} 23. Nxg5+ {[%emt 0:00:03]} Kg8 {[%emt 0:01:11]} 24. Qh4 {[%emt 0:01:31]} Qc2 {[%emt 0:01:16]} 25. Rec1 {[%emt 0:06:59]} Qg6 {[%emt 0:00:28]} 26. Rc7 {[%emt 0:00:24]} Bxd5 {[%emt 0:01:18]} 27. Rd1 {[%emt 0:00:40]} Nb6 {[%emt 0:03:56]} 28. Rd4 {[%emt 0:00:10]} Rac8 {[%emt 0:02:22]} 29. Ra7 {[%emt 0:00:33]} Rc4 {[%emt 0:02:28]} 30. Rxc4 {[%emt 0:00:52]} Nxc4 {[%emt 0:00:57]} 31. f3 {[%emt 0:00:41]} f6 {[%emt 0:01:07]} 32. Ne4 {[%emt 0:00:05]} Bxe4 {[%emt 0:00:24]} 33. fxe4 {[%emt 0:00:03]} Qxe4 {[%emt 0:00:57]} 34. Qxe4 {[%emt 0:01:02]} Rxe4 {[%emt 0:00:06]} 35. Rxa6 {[%emt 0:00:03]} Nxb2 {[%emt 0:01:16]} 36. Rxd6 {[%emt 0:00:04]} Rb4 {[%emt 0:01:05]} 37. Kf2 {[%emt 0:00:10]} Nc4 {[%emt 0:00:19]} 38. Rd8+ {[%emt 0:00:03]} Kh7 {[%emt 0:00:11]} 39. Rb8 {[%emt 0:00:20]} Rb2+ {[%emt 0:00:17]} 40. Kf3 {[%emt 0:00:03]} Ne5+ {[%emt 0:00:43]} 41. Ke4 {[%emt 0:30:05]} Rxg2 {[%emt 0:30:35]} 42. Rxb5 {[%emt 0:00:05]} Rg3 {[%emt 0:00:51]} 43. h4 {[%emt 0:00:14]} Rg4+ {[%emt 0:00:22]} 44. Kf5 {[%emt 0:00:04]} Rxh4 {[%emt 0:00:27]} 45. Rb7 {[%emt 0:00:05]} Rh1 {[%emt 0:00:46]} 46. Rb2 {[%emt 0:00:27]} Rf1+ {[%emt 0:00:45]} 47. Ke6 {[%emt 0:00:04]} g5 {[%emt 0:00:00]} 48. Rh2+ {[%emt 0:00:00]} Kg6 {[%emt 0:00:00]} 49. Rh8 {[%emt 0:00:00]} g4 {[%emt 0:00:00]} 50. Rf8 {[%emt 0:00:00]} Kg5 {[%emt 0:00:00]} 51. Rg8+ {[%emt 0:00:00]} Kh4 {[%emt 0:00:00]} 52. Rh8+ {[%emt 0:00:00]} Kg3 {[%emt 0:00:00]} 53. Rh5 {[%emt 0:00:00]} Kg2 {[%emt 0:00:00]} 54. Kd5 {[%emt 0:00:00]} g3 {[%emt 0:00:00]} 55. Ke4 {[%emt 0:00:00]} Kg1 {[%emt 0:00:00]} 56. Ke3 {[%emt 0:00:00]} g2 {[%emt 0:00:00]} 57. Ke2 {[%emt 0:00:00]} Rf2+ {[%emt 0:00:00]} 58. Ke1 {[%emt 0:00:00]} Nf3+ {[%emt 0:00:00]} 59. Kd1 {[%emt 0:00:00]} Kf1 {[%emt 0:00:00]} 0-1

[Event "Krakow Championship-B 2022"]
[Site "Krakow"]
[Date "2022.06.29"]
[Round "6.8"]
[White "Szopa, Emilia"]
[Black "Cichon, Jakub"]
[Result "0-1"]
[ECO "B20"]
[WhiteElo "1839"]
[BlackElo "1884"]
[Annotator "NA RC"]
[PlyCount "82"]
[EventDate "2022.06.25"]
[EventType "swiss"]
[EventCountry "POL"]
[SourceTitle "playchess.com"]
[Source "ChessBase"]
[SourceQuality "1"]
[TimeControl "40/5400+30:1800+30"]

1. e4 {[%emt 0:00:04]} c5 {[%emt 0:00:41]} 2. Ne2 {[%emt 0:00:29]} Nf6 {[%emt 0:00:18]} 3. e5 {[%emt 0:05:07]} Nd5 {[%emt 0:01:17]} 4. c3 {[%emt 0:01:04]} d6 {[%emt 0:01:44]} 5. exd6 {[%emt 0:02:41]} exd6 {[%emt 0:02:14]} 6. d3 {[%emt 0:09:36]} Nc6 {[%emt 0:01:55]} 7. Ng3 {[%emt 0:02:15]} g6 {[%emt 0:02:43]} 8. Be2 {[%emt 0:02:23]} Bg7 {[%emt 0:02:11]} 9. O-O {[%emt 0:01:59]} O-O {[%emt 0:01:59]} 10. Na3 {[%emt 0:02:39]} a6 {[%emt 0:02:26]} 11. f4 {[%emt 0:08:08]} f5 {[%emt 0:09:33]} 12. Bf3 {[%emt 0:02:21]} Nf6 {[%emt 0:02:06]} 13. Nc2 {[%emt 0:09:00]} Re8 {[%emt 0:09:59]} 14. Be3 {[%emt 0:11:30]} Bd7 {[%emt 0:05:31]} 15. Qd2 {[%emt 0:02:39]} Qc7 {[%emt 0:08:03]} 16. Rae1 {[%emt 0:07:53]} Rab8 {[%emt 0:03:57]} 17. b3 {[%emt 0:05:32]} b5 {[%emt 0:02:00]} 18. b4 {[%emt 0:08:20]} Ne7 {[%emt 0:01:47]} 19. bxc5 {[%emt 0:03:26]} dxc5 {[%emt 0:00:25]} 20. d4 {[%emt 0:01:01]} Ned5 {[%emt 0:05:30]} 21. Bxd5+ {[%emt 0:02:17]} Nxd5 {[%emt 0:00:07]} 22. dxc5 {[%emt 0:00:43]} Nxe3 {[%emt 0:03:11]} 23. Nxe3 {[%emt 0:00:31]} Be6 {[%emt 0:07:45]} 24. Ne2 {[%emt 0:03:33]} Qxc5 {[%emt 0:02:44]} 25. Nd4 {[%emt 0:00:08]} Bf7 {[%emt 0:01:57]} 26. Nec2 {[%emt 0:03:00]} Red8 {[%emt 0:07:01]} 27. Kh1 {[%emt 0:02:19]} Rbc8 {[%emt 0:01:03]} 28. Rf3 {[%emt 0:00:45]} Bd5 {[%emt 0:03:55]} 29. Rfe3 {[%emt 0:01:15]} Be4 {[%emt 0:00:55]} 30. Qf2 {[%emt 0:01:02]} Qb6 {[%emt 0:03:09]} 31. Rxe4 {[%emt 0:00:43]} fxe4 {[%emt 0:00:28]} 32. Rxe4 {[%emt 0:00:20]} Rxc3 {[%emt 0:02:12]} 33. Qe1 {[%emt 0:00:37]} Rcc8 {[%emt 0:02:43]} 34. Ne6 {[%emt 0:00:36]} Rd7 {[%emt 0:01:15]} 35. Nxg7 {[%emt 0:00:40]} Kxg7 {[%emt 0:00:38]} 36. Re7+ {[%emt 0:00:16]} Rxe7 {[%emt 0:01:23]} 37. Qxe7+ {[%emt 0:00:07]} Kg8 {[%emt 0:00:11]} 38. Qd7 {[%emt 0:01:20]} Rd8 {[%emt 0:01:27]} 39. Qe7 {[%emt 0:00:27]} Qd6 {[%emt 0:00:24]} 40. Qe3 {[%emt 0:00:41]} Qd1+ {[%emt 0:00:59]} 41. Ne1 {[%emt 0:30:08]} Qd7 {[%emt 0:00:36]} 0-1

[Event "Krakow Championship-B 2022"]
[Site "Krakow"]
[Date "2022.06.29"]
[Round "6.9"]
[White "Cichon, Bartlomiej"]
[Black "Karut, Kacper"]
[Result "1/2-1/2"]
[ECO "B58"]
[WhiteElo "1895"]
[BlackElo "1775"]
[Annotator "NA RC"]
[PlyCount "82"]
[EventDate "2022.06.25"]
[EventType "swiss"]
[EventCountry "POL"]
[SourceTitle "playchess.com"]
[Source "ChessBase"]
[SourceQuality "1"]
[TimeControl "40/5400+30:1800+30"]

1. e4 {[%emt 0:00:04]} c5 {[%emt 0:00:07]} 2. Nf3 {[%emt 0:00:06]} d6 {[%emt 0:00:04]} 3. d4 {[%emt 0:00:03]} cxd4 {[%emt 0:00:04]} 4. Nxd4 {[%emt 0:00:05]} Nf6 {[%emt 0:00:03]} 5. Nc3 {[%emt 0:00:04]} Nc6 {[%emt 0:00:06]} 6. Be2 {[%emt 0:00:32]} e5 {[%emt 0:00:19]} 7. Nf3 {[%emt 0:00:06]} h6 {[%emt 0:00:12]} 8. O-O {[%emt 0:00:14]} Be7 {[%emt 0:02:24]} 9. Re1 {[%emt 0:00:08]} Be6 {[%emt 0:00:26]} 10. Bf1 {[%emt 0:00:31]} Qa5 {[%emt 0:04:58]} 11. Bd2 {[%emt 0:08:40]} Qd8 {[%emt 0:11:07]} 12. Bc1 {[%emt 0:01:29]} Qa5 {[%emt 0:00:54]} 13. Bd2 {[%emt 0:07:17]} Qd8 {[%emt 0:03:48]} 14. Na4 {[%emt 0:00:39]} Bg4 {[%emt 0:09:45]} 15. h3 {[%emt 0:08:31]} Bh5 {[%emt 0:06:14]} 16. c4 {[%emt 0:04:03]} Nd4 {[%emt 0:12:57]} 17. g4 {[%emt 0:16:03]} Nxf3+ {[%emt 0:03:46]} 18. Qxf3 {[%emt 0:01:44]} Bg6 {[%emt 0:00:59]} 19. Nc3 {[%emt 0:02:33]} O-O {[%emt 0:02:03]} 20. Rad1 {[%emt 0:03:39]} h5 {[%emt 0:07:44]} 21. Bg5 {[%emt 0:01:32]} hxg4 {[%emt 0:01:47]} 22. hxg4 {[%emt 0:00:06]} Nh7 {[%emt 0:01:13]} 23. Bxe7 {[%emt 0:00:08]} Qxe7 {[%emt 0:00:04]} 24. Bg2 {[%emt 0:01:35]} Rfd8 {[%emt 0:02:49]} 25. Rd3 {[%emt 0:08:26]} Ng5 {[%emt 0:06:22]} 26. Qe3 {[%emt 0:01:29]} Ne6 {[%emt 0:01:26]} 27. Red1 {[%emt 0:01:32]} Nf4 {[%emt 0:07:53]} 28. R3d2 {[%emt 0:07:07]} a6 {[%emt 0:05:03]} 29. Nd5 {[%emt 0:08:35]} Qg5 {[%emt 0:01:38]} 30. Nxf4 {[%emt 0:01:04]} exf4 {[%emt 0:00:10]} 31. Qf3 {[%emt 0:02:14]} Re8 {[%emt 0:01:46]} 32. Rd5 {[%emt 0:03:01]} Re5 {[%emt 0:00:50]} 33. Qe2 {[%emt 0:02:29]} Qe7 {[%emt 0:01:32]} 34. f3 {[%emt 0:00:22]} Rxd5 {[%emt 0:00:55]} 35. Rxd5 {[%emt 0:00:52]} Rc8 {[%emt 0:00:17]} 36. g5 {[%emt 0:02:36]} Rc5 {[%emt 0:01:44]} 37. Qd3 {[%emt 0:00:54]} Rxd5 {[%emt 0:01:11]} 38. Qxd5 {[%emt 0:00:06]} Qc7 {[%emt 0:00:05]} 39. Qd4 {[%emt 0:02:24]} Qa5 {[%emt 0:00:54]} 40. a3 {[%emt 0:04:03]} Qe1+ {[%emt 0:00:38]} 41. Kh2 {[%emt 0:30:21]} Qg3+ 1/2-1/2

[Event "Krakow Championship-B 2022"]
[Site "Krakow"]
[Date "2022.06.29"]
[Round "6.10"]
[White "Cwiek, Ryszard"]
[Black "Klementys, Jerzy"]
[Result "1-0"]
[ECO "B20"]
[WhiteElo "1880"]
[BlackElo "1614"]
[Annotator "NA RC"]
[PlyCount "85"]
[EventDate "2022.06.25"]
[EventType "swiss"]
[EventCountry "POL"]
[SourceTitle "playchess.com"]
[Source "ChessBase"]
[SourceQuality "1"]
[TimeControl "40/5400+30:1800+30"]

1. e4 {[%emt 0:00:03]} c5 {[%emt 0:00:01]} 2. b3 {[%emt 0:00:04]} Nc6 {[%emt 0:00:18]} 3. Bb2 {[%emt 0:00:04]} d6 {[%emt 0:00:40]} 4. Bb5 {[%emt 0:00:08]} Bd7 {[%emt 0:00:09]} 5. d3 {[%emt 0:03:32]} a6 {[%emt 0:00:34]} 6. Bxc6 {[%emt 0:00:10]} Bxc6 {[%emt 0:00:02]} 7. f4 {[%emt 0:02:03]} e6 {[%emt 0:01:38]} 8. Nf3 {[%emt 0:00:51]} Nf6 {[%emt 0:01:30]} 9. O-O {[%emt 0:02:08]} Be7 {[%emt 0:00:45]} 10. Nbd2 {[%emt 0:02:37]} b5 {[%emt 0:03:22]} 11. c4 {[%emt 0:05:55]} b4 {[%emt 0:00:23]} 12. Qe2 {[%emt 0:09:25]} a5 {[%emt 0:03:52]} 13. e5 {[%emt 0:22:20]} dxe5 {[%emt 0:00:12]} 14. Nxe5 {[%emt 0:07:54]} Bb7 {[%emt 0:00:40]} 15. a4 {[%emt 0:13:50]} bxa3 {[%emt 0:05:50]} 16. Rxa3 {[%emt 0:00:11]} O-O {[%emt 0:00:24]} 17. Bc3 {[%emt 0:02:06]} Bd6 {[%emt 0:01:09]} 18. Rfa1 {[%emt 0:12:48]} Bc7 19. Ne4 Nxe4 {[%emt 0:06:07]} 20. dxe4 {[%emt 0:00:34]} f6 {[%emt 0:02:50]} 21. Rd1 {[%emt 0:06:32]} Qc8 {[%emt 0:00:49]} 22. Nd3 {[%emt 0:00:38]} Rd8 {[%emt 0:01:34]} 23. Raa1 {[%emt 0:01:46]} Qb8 {[%emt 0:04:18]} 24. Qg4 {[%emt 0:02:34]} e5 {[%emt 0:05:31]} 25. fxe5 {[%emt 0:01:26]} fxe5 {[%emt 0:00:02]} 26. Bxe5 {[%emt 0:00:55]} Bxe5 {[%emt 0:00:17]} 27. Qe6+ {[%emt 0:00:03]} Kh8 {[%emt 0:00:13]} 28. Nxe5 {[%emt 0:00:10]} Rxd1+ {[%emt 0:01:19]} 29. Rxd1 {[%emt 0:00:07]} Qe8 {[%emt 0:00:54]} 30. Qxe8+ Rxe8 {[%emt 0:00:03]} 31. Nf7+ {[%emt 0:04:02]} Kg8 {[%emt 0:00:19]} 32. Nd6 {[%emt 0:00:04]} Rb8 {[%emt 0:01:53]} 33. Ra1 {[%emt 0:00:46]} Bc6 {[%emt 0:04:04]} 34. Rxa5 {[%emt 0:00:04]} Rxb3 {[%emt 0:00:10]} 35. Rxc5 {[%emt 0:00:10]} Rb6 {[%emt 0:00:19]} 36. e5 {[%emt 0:00:15]} Kf8 {[%emt 0:00:31]} 37. e6 {[%emt 0:01:01]} Ra6 {[%emt 0:00:37]} 38. Re5 {[%emt 0:00:54]} Ra7 {[%emt 0:01:22]} 39. Nf5 {[%emt 0:00:48]} g6 {[%emt 0:01:36]} 40. e7+ {[%emt 0:00:43]} Kg8 {[%emt 0:04:59]} 41. e8=Q+ {[%emt 0:30:10]} Bxe8 {[%emt 0:30:07]} 42. Rxe8+ {[%emt 0:00:02]} Kf7 {[%emt 0:00:15]} 43. Nd6+ {[%emt 0:00:03]} 1-0

[Event "Krakow Championship-B 2022"]
[Site "Krakow"]
[Date "2022.06.29"]
[Round "6.11"]
[White "Tokarz, Izabela"]
[Black "Al-Hajiri, Bader"]
[Result "1-0"]
[ECO "A67"]
[WhiteElo "1690"]
[BlackElo "2052"]
[Annotator "NA RC"]
[PlyCount "66"]
[EventDate "2022.06.25"]
[EventType "swiss"]
[EventCountry "POL"]
[SourceTitle "playchess.com"]
[Source "ChessBase"]
[SourceQuality "1"]
[TimeControl "40/5400+30:1800+30"]

1. d4 {[%emt 0:00:02]} Nf6 {[%emt 0:05:57]} 2. c4 {[%emt 0:00:06]} c5 {[%emt 0:01:10]} 3. d5 {[%emt 0:00:06]} e6 {[%emt 0:00:08]} 4. Nc3 {[%emt 0:00:04]} exd5 {[%emt 0:00:07]} 5. cxd5 {[%emt 0:00:03]} d6 {[%emt 0:00:11]} 6. e4 {[%emt 0:00:06]} g6 {[%emt 0:00:06]} 7. f4 {[%emt 0:01:10]} Bg7 {[%emt 0:02:09]} 8. Bb5+ {[%emt 0:00:06]} Bd7 {[%emt 0:03:19]} 9. Bxd7+ {[%emt 0:29:35]} Nbxd7 {[%emt 0:01:05]} 10. Nf3 {[%emt 0:18:30]} O-O {[%emt 0:04:30]} 11. O-O {[%emt 0:00:06]} Re8 {[%emt 0:00:18]} 12. Re1 {[%emt 0:01:23]} c4 {[%emt 0:01:22]} 13. h3 {[%emt 0:10:16]} Nc5 {[%emt 0:09:29]} 14. e5 {[%emt 0:05:57]} dxe5 {[%emt 0:00:14]} 15. fxe5 {[%emt 0:00:51]} Nfd7 {[%emt 0:00:08]} 16. e6 {[%emt 0:06:27]} fxe6 {[%emt 0:00:09]} 17. dxe6 {[%emt 0:00:10]} Nd3 {[%emt 0:04:51]} 18. Re2 {[%emt 0:15:55]} Qb6+ {[%emt 0:04:27]} 19. Be3 {[%emt 0:00:26]} Qxe6 {[%emt 0:00:08]} 20. Bxa7 {[%emt 0:03:56]} N7e5 {[%emt 0:01:50]} 21. Nxe5 {[%emt 0:01:10]} Bxe5 {[%emt 0:00:08]} 22. Bf2 {[%emt 0:00:32]} Rad8 {[%emt 0:11:52]} 23. Qa4 {[%emt 0:03:21]} Nxf2 {[%emt 0:02:43]} 24. Rxf2 {[%emt 0:00:54]} Bd4 {[%emt 0:00:06]} 25. Raf1 {[%emt 0:00:11]} Rf8 {[%emt 0:00:22]} 26. Nd1 {[%emt 0:00:24]} Qe2 {[%emt 0:06:07]} 27. Qa5 {[%emt 0:01:01]} Rxf2 {[%emt 0:02:01]} 28. Nxf2 {[%emt 0:01:11]} Bxf2+ {[%emt 0:00:15]} 29. Kh2 {[%emt 0:00:26]} b6 {[%emt 0:05:32]} 30. Qg5 {[%emt 0:00:23]} Rd3 {[%emt 0:00:18]} 31. Qf6 {[%emt 0:00:37]} Rxh3+ {[%emt 0:01:42]} 32. gxh3 {[%emt 0:00:08]} Bd4+ {[%emt 0:00:12]} 33. Rf2 {[%emt 0:00:20]} Qxf2+ {[%emt 0:00:09]} 1-0

[Event "Krakow Championship-B 2022"]
[Site "Krakow"]
[Date "2022.06.29"]
[Round "6.12"]
[White "Czaplak, Lukasz"]
[Black "Gajzner, Ryszard"]
[Result "1-0"]
[ECO "E19"]
[WhiteElo "1905"]
[BlackElo "1731"]
[Annotator "NA RC"]
[PlyCount "93"]
[EventDate "2022.06.25"]
[EventType "swiss"]
[EventCountry "POL"]
[SourceTitle "playchess.com"]
[Source "ChessBase"]
[SourceQuality "1"]
[TimeControl "40/5400+30:1800+30"]

1. d4 {[%emt 0:00:02]} Nf6 {[%emt 0:00:07]} 2. Nf3 {[%emt 0:00:04]} e6 {[%emt 0:00:07]} 3. g3 {[%emt 0:00:04]} b6 {[%emt 0:00:32]} 4. Bg2 {[%emt 0:00:05]} Bb7 {[%emt 0:00:11]} 5. O-O {[%emt 0:00:06]} Be7 {[%emt 0:00:23]} 6. c4 {[%emt 0:00:13]} O-O {[%emt 0:00:33]} 7. Nc3 {[%emt 0:00:03]} Ne4 {[%emt 0:03:43]} 8. Qc2 {[%emt 0:01:30]} Nxc3 {[%emt 0:00:20]} 9. Qxc3 {[%emt 0:00:24]} Be4 {[%emt 0:00:18]} 10. Ne1 {[%emt 0:11:11]} Bxg2 {[%emt 0:00:09]} 11. Nxg2 {[%emt 0:00:08]} c5 {[%emt 0:06:42]} 12. d5 {[%emt 0:05:32]} exd5 {[%emt 0:02:20]} 13. cxd5 {[%emt 0:00:01]} Bf6 {[%emt 0:00:30]} 14. Qc2 {[%emt 0:06:37]} d6 {[%emt 0:06:23]} 15. e4 {[%emt 0:03:33]} Nd7 {[%emt 0:02:19]} 16. Ne3 {[%emt 0:09:10]} g6 {[%emt 0:00:34]} 17. Nc4 {[%emt 0:02:17]} Ne5 {[%emt 0:03:03]} 18. Nxe5 {[%emt 0:02:50]} Bxe5 {[%emt 0:00:12]} 19. Kg2 {[%emt 0:12:58]} Qd7 {[%emt 0:06:57]} 20. Bh6 {[%emt 0:01:27]} Rfe8 {[%emt 0:02:26]} 21. f4 {[%emt 0:02:53]} Bd4 {[%emt 0:06:46]} 22. f5 {[%emt 0:01:38]} Qe7 {[%emt 0:02:59]} 23. fxg6 {[%emt 0:01:56]} hxg6 {[%emt 0:00:56]} 24. Rae1 {[%emt 0:00:44]} Bg7 {[%emt 0:03:50]} 25. Bxg7 {[%emt 0:08:12]} Kxg7 {[%emt 0:00:07]} 26. Qf2 {[%emt 0:00:29]} f6 {[%emt 0:02:02]} 27. h4 {[%emt 0:01:50]} Rh8 {[%emt 0:02:01]} 28. Qf4 {[%emt 0:05:42]} Rh5 {[%emt 0:04:21]} 29. Qg4 {[%emt 0:01:42]} Re5 {[%emt 0:01:20]} 30. Rf4 {[%emt 0:01:46]} Rf8 {[%emt 0:03:06]} 31. Ref1 {[%emt 0:01:43]} Kh6 {[%emt 0:02:51]} 32. R1f2 {[%emt 0:02:43]} Qf7 {[%emt 0:07:58]} 33. Rxf6 {[%emt 0:02:25]} Qxf6 {[%emt 0:00:05]} 34. Rxf6 {[%emt 0:00:02]} Rxf6 {[%emt 0:00:09]} 35. Qc8 {[%emt 0:00:20]} Kg7 {[%emt 0:02:33]} 36. Qd7+ {[%emt 0:00:30]} Rf7 {[%emt 0:01:54]} 37. Qxd6 {[%emt 0:04:27]} Rxe4 {[%emt 0:00:12]} 38. Kh3 {[%emt 0:02:12]} Rd4 {[%emt 0:00:37]} 39. Qe5+ {[%emt 0:00:14]} Kh7 {[%emt 0:02:37]} 40. Qe6 {[%emt 0:02:03]} Kg7 {[%emt 0:01:23]} 41. Qe5+ {[%emt 0:33:18]} Kh7 {[%emt 0:30:11]} 42. h5 {[%emt 0:00:37]} gxh5 {[%emt 0:00:40]} 43. Qxh5+ {[%emt 0:00:02]} Kg8 {[%emt 0:00:19]} 44. Qg6+ {[%emt 0:01:54]} Kf8 {[%emt 0:00:49]} 45. d6 {[%emt 0:04:11]} Rd7 {[%emt 0:04:29]} 46. Qf6+ {[%emt 0:01:08]} Rf7 {[%emt 0:00:26]} 47. Qh8# {[%emt 0:00:20]} 1-0